[Event "26th Womens ECCC 2022"]
[Site "Mayrhofen"]
[Date "2022.10.03"]
[Round "1.6"]
[White "Blagojevic, Tijana"]
[Black "Atalik, Ekaterina"]
[Result "1/2-1/2"]
[ECO "C47"]
[WhiteElo "2266"]
[BlackElo "2406"]
[Annotator "TA"]
[PlyCount "64"]
[EventDate "2022.10.03"]
[EventType "team-tourn"]
[EventCountry "AUT"]
[SourceTitle "playchess.com"]
[Source "ChessBase"]
[SourceQuality "1"]
[TimeControl "40/5400+30:1800+30"]

{[%evp 24,64,0,0,13,23,10,21,20,14,15,18,22,15,16,22,20,11,23,10,21,0,0,0,10,17,28,33,47,15,15,7,7,12,15,15,12,12,19,19,53,15,18]} 1. e4 {[%emt 0:00:04]} e5 {[%emt 0:00:11]} 2. Nf3 {[%emt 0:00:09]} Nc6 {[%emt 0:00:11]} 3. Nc3 {[%emt 0:00:08]} Nf6 {[%emt 0:00:19]} 4. d4 {[%emt 0:00:10]} exd4 {[%emt 0:00:30]} 5. Nxd4 {[%emt 0:00:07]} Bb4 {[%emt 0:00:20]} 6. Nxc6 {[%emt 0:00:28]} bxc6 {[%emt 0:00:08]} 7. Bd3 {[%emt 0:00:09]} d5 {[%emt 0:00:33]} 8. exd5 {[%emt 0:00:33]} cxd5 {[%emt 0:00:09]} 9. O-O {[%emt 0:00:30]} O-O {[%emt 0:00:15]} 10. Qf3 {[%emt 0:00:37]} c6 {[%emt 0:00:55]} 11. Bg5 {[%emt 0:05:25]} Bd6 {[%emt 0:01:07] 11...h6 is the modern continuation.} 12. Rae1 {[%emt 0:01:11]} Rb8 {[%emt 0:00:32]} 13. Nd1 {[%emt 0:00:31]} h6 {[%emt 0:02:22] C47: Scotch Four Knights and Four Knights with 4 g3.} 14. Bxf6 {[%emt 0:00:33]} Qxf6 {[%emt 0:00:09]} 15. Qxf6 {[%emt 0:00:07]} gxf6 {[%emt 0:00:06]} 16. b3 {[%emt 0:00:46]} f5 {[%emt 0:04:07]} 17. Ne3 {[%emt 0:03:14]} f4 {[%emt 0:00:44]} 18. Nf5 {[%emt 0:00:24]} Bxf5 {[%emt 0:00:24]} 19. Bxf5 {[%emt 0:00:06]} Kg7 {[%emt 0:01:11]} 20. g3 {[%emt 0:03:07]} Kf6 {[%emt 0:01:03]} 21. Bd7 {[%emt 0:04:22]} Rb6 {[%emt 0:03:58] [#]} 22. Re8 $146 {[%emt 0:12:23]} ({Predecessor:} 22. Kg2 Rd8 23. Bg4 Rg8 24. Be2 Bb4 25. Rd1 Re8 26. Bd3 Bc3 27. Kf3 Rb4 28. gxf4 {½-½ (60) Thakur,A (2300)-Iuldachev,S (2501) Mumbai 2008}) 22... Rxe8 {[%emt 0:05:11]} 23. Bxe8 $11 {[%emt 0:00:05][%mdl 4096] Endgame KRB-KRB} Bb4 {[%emt 0:05:00] [#] Strongly threatening ...Ke7.} 24. Bd7 {[%emt 0:03:04]} Ke5 {[%emt 0:07:09]} 25. Rd1 {[%emt 0:05:04]} fxg3 {[%emt 0:03:15]} 26. fxg3 {[%emt 0:02:14]} c5 {[%emt 0:07:09]} 27. Be8 {[%emt 0:17:51]} f5 {[%emt 0:07:15][%cal Bf7f5,Bf5f4,Bf4g3][%mdl 32]} 28. Bf7 {[%emt 0:00:28]} d4 {[%emt 0:02:28]} 29. Rf1 {[%emt 0:04:37]} Bd2 {[%emt 0:02:03]} 30. Kg2 {[%emt 0:00:37]} Rf6 {[%emt 0:05:34]} 31. Bc4 {[%emt 0:00:20]} f4 {[%emt 0:02:57]} 32. Bd3 {[%emt 0:00:42]} fxg3 {[%emt 0:05:51] Weighted Error Value: White=0.07 (flawless) /Black=0.07 (flawless)} 1/2-1/2

[Event "26th Womens ECCC 2022"]
[Site "Mayrhofen"]
[Date "2022.10.03"]
[Round "1.7"]
[White "Efroimski, Marsel"]
[Black "Gajcin, Marina"]
[Result "1-0"]
[ECO "B40"]
[WhiteElo "2462"]
[BlackElo "2228"]
[Annotator "TA"]
[PlyCount "141"]
[EventDate "2022.10.03"]
[EventType "team-tourn"]
[EventCountry "AUT"]
[SourceTitle "playchess.com"]
[Source "ChessBase"]
[SourceQuality "1"]
[TimeControl "40/5400+30:1800+30"]

{[%evp 14,141,12,6,7,-16,0,-4,27,-17,73,72,89,26,44,0,0,0,0,-43,-32,-67,-59,-84,-51,-75,-21,-22,-22,-19,0,-16,0,0,0,-17,0,0,0,0,18,0,0,0,0,0,0,-28,0,0,0,0,0,0,41,47,58,58,58,58,58,58,58,59,59,61,106,108,102,104,103,99,99,100,98,105,106,67,69,27,31,27,60,16,19,20,27,38,38,0,0,0,0,0,4,0,2,0,0,0,0,0,0,0,2,8,14,0,0,0,0,0,27999,27999,27999,27999,27999,27999,27999,27999,27999,27999,27999,27999,27999,27999,27999,27999,27999,27999]} 1. e4 {[%emt 0:00:01]} c5 {[%emt 0:00:07]} 2. Nf3 {[%emt 0:00:04]} e6 {[%emt 0:00:05]} 3. b3 {[%emt 0:03:27]} Nc6 {[%emt 0:02:19]} 4. Bb2 {[%emt 0:00:06]} d6 {[%emt 0:00:50]} 5. d4 {[%emt 0:02:09]} cxd4 {[%emt 0:05:10]} 6. Nxd4 {[%emt 0:00:47]} Nf6 {[%emt 0:02:58]} 7. Nxc6 {[%emt 0:04:11] 7.Bd3 deserves study.} bxc6 {[%emt 0:00:07]} 8. e5 {[%emt 0:00:12]} dxe5 {[%emt 0:07:49] Threatens to win with ...Qxd1+. B50: Sicilian: 2...d6, Miscellaneous.} 9. Qxd8+ {[%emt 0:00:08]} Kxd8 {[%emt 0:00:04]} 10. Bxe5 {[%emt 0:01:30]} Bc5 {[%emt 0:06:08][%cal Oc5f2] The position is equal.} 11. Be2 {[%emt 0:00:52]} Ne8 {[%emt 0:05:55] [#]} (11... Nd5 $1 $11) 12. Nd2 $146 {[%emt 0:06:45]} ({Predecessor:} 12. Nc3 f6 13. O-O-O+ Ke7 14. Ne4 Bb4 15. Bd4 e5 16. Bc5+ Bxc5 17. Nxc5 Bf5 18. f4 {1-0 (39) Rajkovic,M (2361)-Fominyh,A (2406) Djenovici 2018}) 12... f6 {[%emt 0:04:10] [#]} 13. Bb2 {[%emt 0:03:31]} ({White should try} 13. O-O-O $1 $16) 13... Kc7 {[%emt 0:06:50]} 14. O-O {[%emt 0:02:36]} Nd6 {[%emt 0:05:07]} 15. a3 {[%emt 0:03:31]} a5 {[%emt 0:09:41] Inhibits b4.} 16. c4 {[%emt 0:05:24][%cal Ob3b4]} Nf5 {[%emt 0:05:47]} 17. Nf3 {[%emt 0:04:29]} e5 {[%emt 0:02:06]} 18. Rfd1 {[%emt 0:02:05]} Re8 {[%emt 0:02:03]} 19. Kf1 {[%emt 0:05:11]} Nd6 {[%emt 0:11:15]} ({Better is} 19... Be6 $17) 20. Bc3 $11 {[%emt 0:02:29]} Ne4 {[%emt 0:01:42][%csl LRc3,LRf2]} 21. Be1 {[%emt 0:00:19]} Be6 {[%emt 0:05:29]} 22. b4 {[%emt 0:09:06]} axb4 {[%emt 0:00:29]} 23. axb4 {[%emt 0:00:05]} Be7 {[%emt 0:01:41]} 24. c5 {[%emt 0:01:59]} Bb3 {[%emt 0:04:13]} 25. Rdc1 {[%emt 0:04:29]} Bd5 {[%emt 0:05:33]} 26. h4 {[%emt 0:00:50]} f5 {[%emt 0:00:22]} 27. Rxa8 {[%emt 0:06:25]} Rxa8 {[%emt 0:00:05]} 28. Nxe5 {[%emt 0:02:15]} Bxh4 {[%emt 0:00:28]} 29. Nc4 {[%emt 0:03:52]} Ra2 {[%emt 0:01:18]} 30. Nb6 {[%emt 0:06:37]} Nd2+ {[%emt 0:00:35]} (30... Bb3 $5 {[%cal Rh4g5]} 31. g3 Bg5 $15) 31. Bxd2 {[%emt 0:04:04]} Rxd2 {[%emt 0:00:03]} 32. Nxd5+ {[%emt 0:05:57]} Rxd5 {[%emt 0:00:01][%mdl 4096] Endgame KRB-KRB} 33. Ra1 {[%emt 0:00:17]} Rd4 {[%emt 0:04:23]} 34. Ra7+ {[%emt 0:02:26]} Kb8 {[%emt 0:00:27]} 35. Rxg7 {[%emt 0:00:53]} Rxb4 {[%emt 0:00:09] And now ...Rb1+ would win.} 36. g3 {[%emt 0:01:14]} Bf6 {[%emt 0:00:44]} 37. Rf7 {[%emt 0:00:44]} Rb1+ {[%emt 0:01:12]} 38. Kg2 {[%emt 0:00:05]} Bd4 {[%emt 0:00:19]} 39. Rxf5 {[%emt 0:01:30]} h6 {[%emt 0:01:21]} 40. f4 {[%emt 0:05:45]} Rc1 {[%emt 0:00:41]} 41. Rf8+ {[%emt 0:03:11]} Kc7 {[%emt 0:03:54]} 42. Rf7+ {[%emt 0:01:16]} Kd8 {[%emt 0:00:51]} 43. Rh7 {[%emt 0:00:24]} Rg1+ {[%emt 0:20:22]} 44. Kf3 {[%emt 0:00:42] White is more active.} Rh1 {[%emt 0:00:28]} 45. g4 {[%emt 0:07:22] g5 is the strong threat.} Rh3+ {[%emt 0:03:33]} 46. Ke4 {[%emt 0:03:00]} (46. Kg2 $5 {[%cal Rg2h3]} Re3 47. Ba6 $16) 46... Bxc5 {[%emt 0:00:11]} 47. Bf3 {[%emt 0:00:54] Strongly threatening g5.} Bd6 {[%emt 0:03:04]} 48. g5 {[%emt 0:06:12] Hoping for g6.} (48. Ra7 $5 {[%cal Ra7h7]}) 48... Rh4 {[%emt 0:00:36][%csl LRf4,LRg5]} 49. g6 {[%emt 0:00:16]} Rxf4+ {[%emt 0:01:02]} 50. Ke3 {[%emt 0:00:04]} Rf8 {[%emt 0:01:00]} 51. Bxc6 {[%emt 0:01:28]} Be5 {[%emt 0:00:35]} 52. Ke4 {[%emt 0:03:59]} Bc3 {[%emt 0:00:01]} 53. Rd7+ {[%emt 0:01:00]} Kc8 {[%emt 0:00:01]} 54. Rd3 {[%emt 0:01:14]} Bb2 {[%emt 0:01:03]} 55. Rb3 {[%emt 0:01:51]} Ba1 {[%emt 0:00:43]} 56. Ra3 {[%emt 0:00:32]} Rf1 {[%emt 0:00:10]} 57. Kd5 {[%emt 0:06:01]} Kd8 {[%emt 0:00:47]} 58. Ra8+ {[%emt 0:00:23]} Kc7 {[%emt 0:00:16]} 59. Ra7+ {[%emt 0:00:53]} Kd8 {[%emt 0:00:17]} 60. g7 {[%emt 0:00:24]} Bxg7 {[%emt 0:00:59]} 61. Rxg7 $2 {[%emt 0:00:23][%mdl 8192] KRB-KR} (61. Rd7+ $11 Ke8 62. Rxg7+ Kf8 63. Rg6) 61... Rd1+ {[%emt 0:00:44]} 62. Ke6 $2 {[%emt 0:00:22][%mdl 8192]} (62. Kc4 $11) 62... Ra1 $2 {[%emt 0:00:32][%mdl 8192] [#]} (62... Rf1 $11) 63. Kd6 $1 {[%emt 0:00:45][%cal Rg7g8] White mates.} Rd1+ {[%emt 0:00:10]} 64. Bd5 {[%emt 0:00:06][%cal Rg7g8]} Re1 {[%emt 0:00:09]} 65. Rg8+ {[%emt 0:01:09]} Re8 {[%emt 0:00:05]} 66. Rg3 {[%emt 0:00:35]} Kc8 {[%emt 0:00:55]} 67. Rc3+ {[%emt 0:00:31]} Kb8 {[%emt 0:00:02]} 68. Ra3 {[%emt 0:00:11][%csl Gd5][%cal Ra3a8]} Rd8+ {[%emt 0:00:08]} 69. Kc6 {[%emt 0:00:08]} h5 {[%emt 0:00:52]} 70. Rb3+ {[%emt 0:00:07]} Ka7 {[%emt 0:00:27]} 71. Kc7 {[%emt 0:00:09] Weighted Error Value: White=0.11 (very precise) /Black=0.10 (very precise)} 1-0

[Event "26th Womens ECCC 2022"]
[Site "Mayrhofen"]
[Date "2022.10.03"]
[Round "1.8"]
[White "Zarkovic, Mila"]
[Black "Rapport, Jovana"]
[Result "0-1"]
[ECO "C15"]
[WhiteElo "2219"]
[BlackElo "2295"]
[Annotator "NA RC"]
[PlyCount "67"]
[EventDate "2022.10.03"]
[EventType "team-tourn"]
[EventCountry "AUT"]
[SourceTitle "playchess.com"]
[Source "ChessBase"]
[SourceQuality "1"]
[TimeControl "40/5400+30:1800+30"]

1. e4 {[%emt 0:00:03]} e6 {[%emt 0:00:11]} 2. d4 {[%emt 0:00:05]} d5 {[%emt 0:00:05]} 3. Nc3 {[%emt 0:00:10]} Bb4 {[%emt 0:00:25]} 4. exd5 {[%emt 0:01:41]} exd5 {[%emt 0:00:08]} 5. Bd3 {[%emt 0:00:30]} c6 {[%emt 0:00:23]} 6. Nge2 {[%emt 0:00:25]} Ne7 {[%emt 0:01:00]} 7. Bg5 {[%emt 0:28:13]} f6 {[%emt 0:12:30]} 8. Bf4 {[%emt 0:01:02]} Bf5 {[%emt 0:00:12]} 9. O-O {[%emt 0:03:38]} O-O {[%emt 0:02:18]} 10. Ng3 {[%emt 0:07:56]} Bxd3 {[%emt 0:02:19]} 11. Qxd3 {[%emt 0:00:18]} Na6 {[%emt 0:00:17]} 12. Nce2 {[%emt 0:03:39]} Bd6 {[%emt 0:05:50]} 13. c3 {[%emt 0:01:31]} Nc7 {[%emt 0:00:11]} 14. Rae1 {[%emt 0:18:29]} Ne6 {[%emt 0:02:48]} 15. Bxd6 {[%emt 0:14:30]} Qxd6 {[%emt 0:00:05]} 16. Nf5 {[%emt 0:00:52]} Nxf5 {[%emt 0:00:14]} 17. Qxf5 {[%emt 0:00:02]} Rae8 {[%emt 0:05:38]} 18. Ng3 {[%emt 0:02:09]} g6 {[%emt 0:05:05]} 19. Qf3 {[%emt 0:04:12]} f5 {[%emt 0:06:37]} 20. Re5 {[%emt 0:03:13]} Ng5 {[%emt 0:09:51]} 21. Qe2 {[%emt 0:00:02]} Rxe5 {[%emt 0:00:06]} 22. dxe5 {[%emt 0:00:35]} Qc5 {[%emt 0:00:01]} 23. h4 {[%emt 0:05:57]} Ne6 {[%emt 0:01:28]} 24. Kh1 {[%emt 0:01:27]} Qe7 {[%emt 0:01:51]} 25. Rd1 {[%emt 0:01:42]} Qxh4+ {[%emt 0:02:17]} 26. Kg1 {[%emt 0:00:01]} f4 {[%emt 0:00:07]} 27. Nf1 {[%emt 0:00:32]} f3 {[%emt 0:05:57]} 28. Qe3 {[%emt 0:00:07]} fxg2 {[%emt 0:02:30]} 29. Ng3 {[%emt 0:00:01]} Qh3 {[%emt 0:03:40]} 30. Qxa7 {[%emt 0:01:47]} Nf4 {[%emt 0:00:26]} 31. Qe3 {[%emt 0:00:28]} Nh5 {[%emt 0:00:16]} 32. Qh6 {[%emt 0:00:07]} Rf3 {[%emt 0:06:37]} 33. e6 {[%emt 0:00:36]} Rxg3 {[%emt 0:03:32]} 34. fxg3 0-1

[Event "26th Womens ECCC 2022"]
[Site "Mayrhofen"]
[Date "2022.10.03"]
[Round "1.9"]
[White "Krasteva, Beloslava"]
[Black "Danielian, Elina"]
[Result "1/2-1/2"]
[ECO "A41"]
[WhiteElo "2287"]
[BlackElo "2431"]
[Annotator "TA"]
[PlyCount "57"]
[EventDate "2022.10.03"]
[EventType "team-tourn"]
[EventCountry "AUT"]
[SourceTitle "playchess.com"]
[Source "ChessBase"]
[SourceQuality "1"]
[TimeControl "40/5400+30:1800+30"]

{[%evp 9,57,45,57,47,62,51,64,64,57,57,56,39,47,26,52,0,0,0,0,0,0,0,0,5,0,0,22,-15,0,0,0,2,0,0,12,2,47,6,16,0,0,0,0,0,0,0,1,0,31,0]} 1. d4 {[%emt 0:00:07]} d6 {[%emt 0:00:18]} 2. e4 {[%emt 0:00:23]} g6 {[%emt 0:00:32]} 3. Bd3 {[%emt 0:00:51]} Bg7 {[%emt 0:00:57]} 4. Nf3 {[%emt 0:00:55]} Nd7 {[%emt 0:07:22]} 5. O-O {[%emt 0:00:54]} e6 {[%emt 0:00:46]} 6. Re1 {[%emt 0:02:27] B06: Modern Defence.} Ne7 {[%emt 0:00:23]} 7. c3 {[%emt 0:00:50]} a6 {[%emt 0:00:16]} 8. a4 {[%emt 0:01:40] White is more active.} b6 {[%emt 0:00:08]} 9. Na3 {[%emt 0:02:15]} Bb7 {[%emt 0:00:15]} 10. Nc4 {[%emt 0:09:32]} O-O {[%emt 0:00:47] [#]} 11. b4 $146 {[%emt 0:03:29]} ({Predecessor:} 11. Qe2 h6 12. Bd2 Nf6 13. h3 Qd7 14. e5 Nfd5 15. Nh2 h5 16. Nf3 Bc6 17. Bg5 {½-½ (71) Potkin,V (2682)-Vitiugov,N (2733) Khanty-Mansiysk 2011}) 11... Nf6 {[%emt 0:13:40]} 12. Qe2 {[%emt 0:05:17]} (12. e5 $14 dxe5 13. Ncxe5) 12... Nxe4 {[%emt 0:28:42]} 13. Bxe4 {[%emt 0:00:55]} Bxe4 {[%emt 0:00:55][%mdl 64] [#] Remove Defender} 14. Qxe4 {[%emt 0:00:48] Hoping for Qd3.} d5 {[%emt 0:00:03]} 15. Qe2 {[%emt 0:03:42] Threatens to win with Nce5.} dxc4 {[%emt 0:00:04]} 16. Qxc4 {[%emt 0:00:45]} Nd5 {[%emt 0:05:52]} 17. Bd2 {[%emt 0:09:50]} Qd6 {[%emt 0:04:02]} 18. b5 {[%emt 0:01:23]} axb5 {[%emt 0:00:51]} 19. axb5 {[%emt 0:00:38]} Ra3 {[%emt 0:04:25]} 20. Rxa3 {[%emt 0:06:36]} Qxa3 {[%emt 0:00:04]} 21. Qc6 {[%emt 0:01:41]} Qd6 {[%emt 0:17:09]} (21... Qa8 $5 {[%cal Ra8c6]}) 22. c4 {[%emt 0:04:57]} Ne7 {[%emt 0:03:07]} 23. Qe4 {[%emt 0:06:22][%cal Od4d5]} Nf5 {[%emt 0:01:25][%cal Rf5d4]} 24. Bf4 {[%emt 0:06:02]} (24. c5 {feels hotter.} bxc5 25. dxc5 Qxc5 26. Bb4) 24... Qb4 {[%emt 0:03:17]} 25. Rc1 {[%emt 0:01:07]} Qb2 {[%emt 0:00:42][%cal Rf5d4]} 26. Rb1 {[%emt 0:02:13]} Qa2 {[%emt 0:03:13]} 27. Rc1 {[%emt 0:03:14]} Qb2 {[%emt 0:00:27][%cal Rf5d4]} 28. Rb1 {[%emt 0:02:45]} Qa2 {[%emt 0:00:03]} 29. Rc1 {[%emt 0:03:30] Weighted Error Value: White=0.10 (very precise) /Black=0.07 (flawless)} 1/2-1/2

[Event "26th Womens ECCC 2022"]
[Site "Mayrhofen"]
[Date "2022.10.03"]
[Round "1.10"]
[White "Ushenina, Anna"]
[Black "Radeva, Viktoria"]
[Result "1-0"]
[ECO "A06"]
[WhiteElo "2445"]
[BlackElo "2263"]
[Annotator "TA"]
[PlyCount "75"]
[EventDate "2022.10.03"]
[EventType "team-tourn"]
[EventCountry "AUT"]
[SourceTitle "playchess.com"]
[Source "ChessBase"]
[SourceQuality "1"]
[TimeControl "40/5400+30:1800+30"]

{[%evp 18,75,11,0,6,6,6,4,15,18,34,31,28,31,25,20,40,34,51,-8,-7,-3,0,-9,-5,-2,-2,-6,8,0,45,41,71,56,66,81,67,64,64,66,73,63,57,55,68,73,70,0,48,47,196,189,661,660,651,645,629,606,810,635]} 1. Nf3 {[%emt 0:00:04]} d5 {[%emt 0:00:06]} 2. g3 {[%emt 0:00:32]} Bg4 {[%emt 0:00:13]} 3. Bg2 {[%emt 0:00:17]} c6 {[%emt 0:00:13]} 4. c4 {[%emt 0:00:35]} e6 {[%emt 0:00:46]} 5. cxd5 {[%emt 0:00:43]} exd5 {[%emt 0:01:32]} 6. O-O {[%emt 0:00:56]} Nd7 {[%emt 0:04:52]} 7. d3 {[%emt 0:01:36]} Ngf6 {[%emt 0:01:11]} 8. h3 {[%emt 0:01:23]} Bxf3 {[%emt 0:00:08]} 9. Bxf3 {[%emt 0:00:04]} Bc5 {[%emt 0:01:42]} 10. Bg2 {[%emt 0:02:56]} O-O {[%emt 0:01:17] A11: English Opening: 1...c6.} 11. e3 {[%emt 0:02:25]} Re8 {[%emt 0:01:36]} 12. Nd2 {[%emt 0:00:35][%cal Bb1d2,Bd2f3,Bf3d4][%mdl 32] [#]} Qc7 $146 {[%emt 0:05:26] The position is equal.} ({Predecessor:} 12... a5 13. Nf3 Qe7 14. Qc2 a4 15. a3 Bb6 16. Bd2 Ba5 17. Bc3 Qc5 18. Rfc1 Qd6 {½-½ (67) Roiz,M (2644)-Pavasovic,D (2597) Heraklion 2007}) 13. Nf3 {[%emt 0:00:56]} Bd6 {[%emt 0:11:37]} 14. b3 {[%emt 0:29:25]} a5 {[%emt 0:05:09]} 15. Bb2 {[%emt 0:01:52]} Ne5 {[%emt 0:09:21]} 16. Nd4 {[%emt 0:04:06]} Bf8 {[%emt 0:18:44]} 17. Qc2 {[%emt 0:14:17]} a4 {[%emt 0:10:11]} 18. f4 {[%emt 0:00:49]} (18. Bc3 $14) 18... Ned7 $11 {[%emt 0:02:45]} 19. e4 {[%emt 0:03:17]} Qb6 {[%emt 0:06:26] [#] Strongly threatening ...Bc5.} 20. Kh2 {[%emt 0:01:15]} ({Not} 20. bxa4 $2 Bc5 21. e5 Nh5 $19) 20... dxe4 {[%emt 0:01:49]} 21. dxe4 {[%emt 0:00:08]} Nc5 {[%emt 0:01:48]} 22. Rfe1 {[%emt 0:04:55]} Rad8 {[%emt 0:05:28][%cal Oc5e4]} 23. Bc3 {[%emt 0:04:46]} Na6 {[%emt 0:04:16]} 24. Nf5 {[%emt 0:05:35]} Qc5 {[%emt 0:03:47] Hoping for ...Nb4.} 25. Rac1 $36 {[%emt 0:01:42][%mdl 2048] White has the initiative.} Nb4 {[%emt 0:01:37]} 26. Qe2 {[%emt 0:04:50]} Qb5 {[%emt 0:00:14]} (26... Nd3 $2 {[#]} 27. Nh6+ $1 {[%mdl 512]} gxh6 28. Bxf6 $18) 27. bxa4 {[%emt 0:08:10]} Qxe2 {[%emt 0:00:28]} 28. Rxe2 {[%emt 0:00:01]} Ra8 {[%emt 0:01:06]} 29. Rb1 {[%emt 0:05:12]} Rxa4 {[%emt 0:00:17]} 30. a3 {[%emt 0:00:46][%cal Rc3b4]} Nd3 {[%emt 0:00:47][%cal Rf6e4]} 31. Rxb7 {[%emt 0:00:40]} Nc5 {[%emt 0:00:28]} 32. Rc7 {[%emt 0:00:24] White is more active.} (32. Rb1 $14) 32... Ncxe4 {[%emt 0:00:19]} (32... Nd5 $1 $11 33. exd5 Rxe2) 33. Bxf6 $14 {[%emt 0:00:54]} gxf6 {[%emt 0:00:28] Black cannot hold the game after this.} ({Better is} 33... Nxf6 $14 34. Rxe8 Nxe8) 34. Rxc6 {[%emt 0:00:12][%cal Bc7c6,Bc6c8,Bc8e8][%mdl 32]} Nd6 $2 {[%emt 0:00:49]} (34... Re6) 35. Rxe8 $18 {[%emt 0:00:12] White is clearly winning.} Nxe8 {[%emt 0:00:12]} 36. Rc8 {[%emt 0:00:02]} Ra5 {[%emt 0:00:22]} 37. g4 {[%emt 0:01:01]} ({Weaker is} 37. Rxe8 Rxf5 38. a4 Kg7 $16) 37... Rxa3 {[%emt 0:00:54]} 38. Rxe8 {[%emt 0:00:07] Weighted Error Value: White=0.09 (flawless) /Black=0.36} 1-0

[Event "26th Womens ECCC 2022"]
[Site "Mayrhofen"]
[Date "2022.10.03"]
[Round "1.11"]
[White "Djukic, Sandra"]
[Black "Osmak, Yuliia"]
[Result "0-1"]
[ECO "A05"]
[WhiteElo "2138"]
[BlackElo "2428"]
[Annotator "TA"]
[PlyCount "104"]
[EventDate "2022.10.03"]
[EventType "team-tourn"]
[EventCountry "AUT"]
[SourceTitle "playchess.com"]
[Source "ChessBase"]
[SourceQuality "1"]
[TimeControl "40/5400+30:1800+30"]

{[%evp 16,104,0,-17,21,14,0,0,15,13,18,0,0,0,0,0,0,0,0,-8,0,-7,0,0,0,-35,-35,-40,-37,-35,0,0,0,0,0,-3,0,0,0,0,0,0,0,0,0,0,0,-28,-28,-28,-35,-27,-27,-27,-29,-30,-27,-30,-19,-20,-20,-19,-20,-20,-15,-22,-22,-18,0,-25,-25,-114,-114,-114,-114,-29945,-4133,-5097,-11032,-29968,-29969,-29969,-29970,-29970,-29971,-29971,-29972,-29971,-29972,-29967,-29967]} 1. Nf3 {[%emt 0:00:03]} Nf6 {[%emt 0:00:17]} 2. c4 {[%emt 0:00:24]} e6 {[%emt 0:01:57]} 3. b3 {[%emt 0:01:11]} d5 {[%emt 0:01:43]} 4. Bb2 {[%emt 0:00:45]} Be7 {[%emt 0:00:08]} 5. g3 {[%emt 0:00:40]} b6 {[%emt 0:00:55]} 6. Bg2 {[%emt 0:00:10]} Bb7 {[%emt 0:00:03]} 7. O-O {[%emt 0:00:35]} O-O {[%emt 0:00:08]} 8. d3 {[%emt 0:03:53][%cal Bd2d3,Bd3d4][%mdl 32]} c5 {[%emt 0:01:49]} 9. cxd5 {[%emt 0:01:40]} exd5 {[%emt 0:06:31] A14: English Opening: 1...e6 with b3 by White.} 10. d4 {[%emt 0:05:35] The main line 10.d4 scores better than 10.Nbd2.} Nc6 {[%emt 0:01:12]} 11. Nc3 {[%emt 0:00:30]} Re8 {[%emt 0:09:00] The position is equal.} 12. Rc1 {[%emt 0:05:44]} Ba6 {[%emt 0:03:30]} 13. Re1 {[%emt 0:05:03]} Ne4 {[%emt 0:04:36]} 14. Nxe4 {[%emt 0:33:36]} dxe4 {[%emt 0:00:16]} 15. Ne5 {[%emt 0:01:10] [#]} Nxd4 $146 {[%emt 0:18:23]} ({Predecessor:} 15... Nxe5 16. dxe5 Bg5 17. Rc2 Bb7 18. h4 Bh6 19. e3 Qxd1 20. Rxd1 Re7 21. Rcd2 Rae8 22. Bh3 g6 {0-1 (66) Bondarets,V (2323)-Sadzikowski,D (2455) Warsaw 2013}) 16. Bxd4 {[%emt 0:02:43]} cxd4 {[%emt 0:02:40]} 17. Bxe4 {[%emt 0:03:51]} Ba3 {[%emt 0:00:38][%csl LRc1,LRe5]} 18. Bxa8 {[%emt 0:01:50][%cal Oc1c4]} Bxc1 {[%emt 0:03:16] This bishop pair is nice.} 19. Bf3 {[%emt 0:11:06] [#] aiming for Nc6.} Bb2 {[%emt 0:03:30]} 20. Qc2 {[%emt 0:04:23] Black must now prevent Nxf7.} (20. Nc6 $5 {[%cal Rc6d8]} Qf6 21. a4 $11) 20... Bc3 {[%emt 0:01:43]} ({But not} 20... Rxe5 21. Qxb2 h6 22. Rc1 $11) 21. Rd1 {[%emt 0:00:58][%cal Oe2e3]} Qf6 {[%emt 0:02:39]} ({Don't do} 21... Rxe5 22. Qxc3 g6 23. Rxd4 $16) 22. Nd3 {[%emt 0:00:14]} g6 {[%emt 0:00:56]} 23. Nf4 {[%emt 0:03:10]} Qe5 {[%emt 0:01:37]} 24. Nd3 {[%emt 0:02:33]} Qf5 {[%emt 0:01:07]} 25. Qc1 {[%emt 0:00:20]} Kg7 {[%emt 0:03:23]} 26. Qa3 {[%emt 0:02:24]} Qa5 {[%emt 0:04:48]} 27. Qxa5 {[%emt 0:04:39]} bxa5 {[%emt 0:00:28]} 28. Kf1 {[%emt 0:00:14]} Bc8 {[%emt 0:10:39]} 29. Kg2 {[%emt 0:01:24] Prevents Bh3+.} g5 {[%emt 0:03:17] Strongly threatening ...g4.} 30. h3 {[%emt 0:00:48] Prevents g4.} f5 {[%emt 0:00:59]} 31. g4 {[%emt 0:01:30]} fxg4 {[%emt 0:04:18]} 32. hxg4 {[%emt 0:00:05]} h5 {[%emt 0:00:38]} 33. gxh5 {[%emt 0:00:44]} g4 {[%emt 0:00:04]} 34. Bd5 {[%emt 0:00:11]} Rxe2 {[%emt 0:00:21]} 35. Nf4 {[%emt 0:00:50]} Rxa2 {[%emt 0:02:50]} 36. Ne6+ {[%emt 0:02:57]} Bxe6 {[%emt 0:03:56]} 37. Bxe6 $11 {[%emt 0:00:02][%mdl 4096] Endgame KRB-KRB} Rb2 {[%emt 0:00:10]} 38. Kg3 {[%emt 0:00:35]} Kf6 {[%emt 0:01:50]} 39. Bc4 {[%emt 0:00:20]} Kg5 {[%emt 0:00:26]} 40. Rh1 {[%emt 0:00:22]} Bd2 {[%emt 0:01:54]} 41. h6 {[%emt 0:03:58]} Bf4+ {[%emt 0:02:22]} 42. Kg2 {[%emt 0:01:23] Hoping for h7.} g3 {[%emt 0:10:51][%cal Bg4g3,Bg3h2][%mdl 32]} 43. h7 {[%emt 0:22:24]} (43. Rf1 $1 $11) 43... Rxf2+ $17 {[%emt 0:00:20]} 44. Kg1 {[%emt 0:00:02] [#]} Rh2 $1 {[%emt 0:10:16] ( -> ...Be3+)} 45. Rxh2 $4 {[%emt 0:04:08][%mdl 8192] Loses the game.} (45. Bd5 $17 Be5 46. Rxh2 gxh2+ 47. Kf2) 45... gxh2+ {[%emt 0:00:05] KB-KB} 46. Kg2 {[%emt 0:00:02]} Be5 {[%emt 0:00:04]} 47. Bd5 {[%emt 0:00:09]} d3 {[%emt 0:05:45] Black mates.} 48. Kf2 {[%emt 0:00:04]} Kf4 {[%emt 0:00:09]} 49. Bc6 {[%emt 0:01:38]} Bd4+ {[%emt 0:00:33]} 50. Ke1 {[%emt 0:00:02]} Ke3 {[%emt 0:00:17]} 51. Kd1 {[%emt 0:00:43]} Bc3 {[%emt 0:00:23]} 52. Bb7 {[%emt 0:00:31]} Kf2 {[%emt 0:00:38] Weighted Error Value: White=0.40/Black=0.03 (flawless)} 0-1